[Event "Titled Tuesday Blitz August 1 Early 2023"]
[White "Dimitrov, Atanas"]
[Black "Kuznetsov, Mikhail"]
[WhiteFideId "2901315"]
[BlackFideId "4117190"]
[WhiteElo "2723"]
[BlackElo "2466"]
[Result "0-1"]
[Round "5"]
[TimeControl "180+1"]
[Date "2023.08.01"]
[WhiteClock "0:00:05"]
[BlackClock "0:00:04"]
[Board "59"]

1. Nf3 {[%clk 0:02:57]}  Nf6 {[%clk 0:02:58]} 2. c4 {[%clk 0:02:58]}  g6 {[%clk 0:02:58]} 3. g3 {[%clk 0:02:58]}  Bg7 {[%clk 0:02:57]} 4. Bg2 {[%clk 0:02:59]}  O-O {[%clk 0:02:57]} 5. O-O {[%clk 0:02:59]}  d5 {[%clk 0:02:57]} 6. cxd5 {[%clk 0:02:59]}  Nxd5 {[%clk 0:02:57]} 7. Nc3 {[%clk 0:02:58]}  Nb6 {[%clk 0:02:54]} 8. b3 {[%clk 0:02:56]}  Nc6 {[%clk 0:02:38]} 9. Bb2 {[%clk 0:02:55]}  e5 {[%clk 0:02:37]} 10. d3 {[%clk 0:02:55]}  Nd4 {[%clk 0:02:15]} 11. Rc1 {[%clk 0:02:30]}  Nxf3+ {[%clk 0:02:10]} 12. Bxf3 {[%clk 0:02:30]}  c6 {[%clk 0:02:11]} 13. Qc2 {[%clk 0:02:24]}  Bh3 {[%clk 0:02:05]} 14. Rfd1 {[%clk 0:02:24]}  Qe7 {[%clk 0:02:02]} 15. Ne4 {[%clk 0:02:17]}  Rfd8 {[%clk 0:01:51]} 16. Nc5 {[%clk 0:02:07]}  Nd5 {[%clk 0:01:26]} 17. a3 {[%clk 0:01:57]}  h5 {[%clk 0:00:52]} 18. b4 {[%clk 0:01:43]}  Bg4 {[%clk 0:00:38]} 19. Bg2 {[%clk 0:01:36]}  h4 {[%clk 0:00:37]} 20. Qd2 {[%clk 0:00:48]}  h3 {[%clk 0:00:10]} 21. Bh1 {[%clk 0:00:46]}  Kh7 {[%clk 0:00:10]} 22. Rc2 {[%clk 0:00:44]}  Bh6 {[%clk 0:00:10]} 23. Qe1 {[%clk 0:00:44]}  Bg7 {[%clk 0:00:08]} 24. e3 {[%clk 0:00:34]}  Rac8 {[%clk 0:00:07]} 25. d4 {[%clk 0:00:21]}  Bxd1 {[%clk 0:00:07]} 26. Qxd1 {[%clk 0:00:19]}  exd4 {[%clk 0:00:08]} 27. Bxd4 {[%clk 0:00:19]}  Bxd4 {[%clk 0:00:07]} 28. exd4 {[%clk 0:00:19]}  Nf6 {[%clk 0:00:04]} 29. Re2 {[%clk 0:00:17]}  Qd6 {[%clk 0:00:04]} 30. Nb3 {[%clk 0:00:17]}  b6 {[%clk 0:00:03]} 31. Qf1 {[%clk 0:00:16]}  Nd5 {[%clk 0:00:02]} 32. Qxh3+ {[%clk 0:00:16]}  Kg7 {[%clk 0:00:03]} 33. Qg4 {[%clk 0:00:14]}  Nc3 {[%clk 0:00:03]} 34. Re1 {[%clk 0:00:12]}  Re8 {[%clk 0:00:03]} 35. Ra1 {[%clk 0:00:12]}  Nb5 {[%clk 0:00:02]} 36. Bg2 {[%clk 0:00:09]}  Nc3 {[%clk 0:00:02]} 37. Bf1 {[%clk 0:00:09]}  f5 {[%clk 0:00:01]} 38. Qf3 {[%clk 0:00:08]}  Ne2+ {[%clk 0:00:02]} 39. Bxe2 {[%clk 0:00:08]}  Qd5 {[%clk 0:00:03]} 40. Qxd5 {[%clk 0:00:06]}  cxd5 {[%clk 0:00:04]} 41. Bf1 {[%clk 0:00:07]}  Rc3 {[%clk 0:00:04]} 42. Nd2 {[%clk 0:00:05]}  g5 {[%clk 0:00:02]} 43. a4 {[%clk 0:00:05]}  g4 {[%clk 0:00:02]} 44. a5 {[%clk 0:00:05]}  Rc2 {[%clk 0:00:02]} 45. Nb3 {[%clk 0:00:03]}  Rc3 {[%clk 0:00:02]} 46. axb6 {[%clk 0:00:03]}  axb6 {[%clk 0:00:02]} 47. Nd2 {[%clk 0:00:02]}  Rc2 {[%clk 0:00:02]} 48. Ra7+ {[%clk 0:00:02]}  Kf6 {[%clk 0:00:02]} 49. Nb3 {[%clk 0:00:02]}  Rc3 {[%clk 0:00:02]} 50. Na1 {[%clk 0:00:02]}  Rc1 {[%clk 0:00:03]} 51. Ra6 {[%clk 0:00:03]}  Ree1 {[%clk 0:00:02]} 52. Rxb6+ {[%clk 0:00:03]}  Kg5 {[%clk 0:00:03]} 53. Nb3 {[%clk 0:00:04]}  Rxf1+ {[%clk 0:00:04]} 54. Kg2 {[%clk 0:00:05]}  Rg1# {[%clk 0:00:04]} 0-1


[Site "https://www.chess.com"]

[Event "Titled Tuesday Blitz August 1 Early 2023"]
[White "Alamzhi21"]
[Black "Al Mukhaini, Shima"]
[BlackFideId "22005854"]
[WhiteElo "2720"]
[BlackElo "2419"]
[Result "0-1"]
[Round "5"]
[TimeControl "180+1"]
[Date "2023.08.01"]
[WhiteClock "0:00:13"]
[BlackClock "0:01:14"]
[Board "61"]

1. d4 {[%clk 0:02:57]}  Nf6 {[%clk 0:02:59]} 2. Bf4 {[%clk 0:02:55]}  d5 {[%clk 0:02:56]} 3. e3 {[%clk 0:02:53]}  Bf5 {[%clk 0:02:57]} 4. c4 {[%clk 0:02:52]}  c6 {[%clk 0:02:55]} 5. Nc3 {[%clk 0:02:52]}  e6 {[%clk 0:02:55]} 6. Qb3 {[%clk 0:02:51]}  Qb6 {[%clk 0:02:54]} 7. c5 {[%clk 0:02:49]}  Qxb3 {[%clk 0:02:54]} 8. axb3 {[%clk 0:02:50]}  Nbd7 {[%clk 0:02:52]} 9. h3 {[%clk 0:02:49]}  a6 {[%clk 0:02:52]} 10. b4 {[%clk 0:02:47]}  O-O-O {[%clk 0:02:50]} 11. Rxa6 {[%clk 0:02:39]}  e5 {[%clk 0:02:49]} 12. Ra8+ {[%clk 0:02:37]}  Kc7 {[%clk 0:02:49]} 13. Rxd8 {[%clk 0:02:35]}  Kxd8 {[%clk 0:02:50]} 14. dxe5 {[%clk 0:02:32]}  Ne4 {[%clk 0:02:46]} 15. g4 {[%clk 0:02:29]}  Bg6 {[%clk 0:02:41]} 16. f3 {[%clk 0:02:25]}  Nxc3 {[%clk 0:02:38]} 17. bxc3 {[%clk 0:02:26]}  b6 {[%clk 0:02:34]} 18. cxb6 {[%clk 0:02:16]}  Nxb6 {[%clk 0:02:34]} 19. Ne2 {[%clk 0:02:14]}  Be7 {[%clk 0:02:31]} 20. Nd4 {[%clk 0:02:13]}  Kd7 {[%clk 0:02:32]} 21. h4 {[%clk 0:02:08]}  h5 {[%clk 0:02:28]} 22. g5 {[%clk 0:01:58]}  Ra8 {[%clk 0:02:26]} 23. Bh3+ {[%clk 0:01:58]}  Kc7 {[%clk 0:02:26]} 24. O-O {[%clk 0:01:54]}  Kb7 {[%clk 0:02:20]} 25. Bd7 {[%clk 0:01:52]}  Nxd7 {[%clk 0:02:13]} 26. e6 {[%clk 0:01:35]}  fxe6 {[%clk 0:02:11]} 27. Nxe6 {[%clk 0:01:36]}  Bf8 {[%clk 0:01:54]} 28. Rd1 {[%clk 0:01:31]}  Bf5 {[%clk 0:01:52]} 29. Nd4 {[%clk 0:01:30]}  g6 {[%clk 0:01:50]} 30. Nxf5 {[%clk 0:01:24]}  gxf5 {[%clk 0:01:49]} 31. e4 {[%clk 0:01:25]}  fxe4 {[%clk 0:01:45]} 32. fxe4 {[%clk 0:01:25]}  Nb6 {[%clk 0:01:46]} 33. e5 {[%clk 0:01:14]}  Re8 {[%clk 0:01:43]} 34. Rf1 {[%clk 0:01:11]}  Bg7 {[%clk 0:01:43]} 35. Be3 {[%clk 0:01:10]}  Bxe5 {[%clk 0:01:37]} 36. Rf7+ {[%clk 0:01:09]}  Bc7 {[%clk 0:01:36]} 37. Bf4 {[%clk 0:01:07]}  Na8 {[%clk 0:01:36]} 38. g6 {[%clk 0:01:06]}  Re6 {[%clk 0:01:36]} 39. g7 {[%clk 0:01:03]}  Rg6+ {[%clk 0:01:35]} 40. Kf2 {[%clk 0:00:52]}  Kb6 {[%clk 0:01:35]} 41. Bh6 {[%clk 0:00:24]}  Be5 {[%clk 0:01:28]} 42. Rf8 {[%clk 0:00:23]}  Bxg7 {[%clk 0:01:27]} 43. Bxg7 {[%clk 0:00:23]}  Rxg7 {[%clk 0:01:28]} 44. Rxa8 {[%clk 0:00:23]}  Rg4 {[%clk 0:01:27]} 45. Rh8 {[%clk 0:00:21]}  Rxh4 {[%clk 0:01:27]} 46. Ke3 {[%clk 0:00:22]}  Kb5 {[%clk 0:01:26]} 47. Rh6 {[%clk 0:00:20]}  Rc4 {[%clk 0:01:21]} 48. Kd3 {[%clk 0:00:20]}  h4 {[%clk 0:01:21]} 49. Kd2 {[%clk 0:00:19]}  Rg4 {[%clk 0:01:20]} 50. Kc2 {[%clk 0:00:18]}  d4 {[%clk 0:01:17]} 51. cxd4 {[%clk 0:00:17]}  Rxd4 {[%clk 0:01:17]} 52. Kc3 {[%clk 0:00:16]}  Rxb4 {[%clk 0:01:15]} 53. Rh8 {[%clk 0:00:17]}  Rg4 {[%clk 0:01:14]} 54. Rb8+ {[%clk 0:00:17]}  Kc5 {[%clk 0:01:14]} 55. Rh8 {[%clk 0:00:18]}  Rg3+ {[%clk 0:01:14]} 56. Kd2 {[%clk 0:00:18]}  h3 {[%clk 0:01:15]} 57. Rg8 {[%clk 0:00:13]}  Rxg8 {[%clk 0:01:14]} 0-1


[Site "https://www.chess.com"]

[Event "Titled Tuesday Blitz August 1 Early 2023"]
[White "Jahnz, Fabian"]
[Black "Panesar Vedant"]
[WhiteFideId "4653300"]
[BlackFideId "35033018"]
[WhiteElo "2309"]
[BlackElo "2717"]
[Result "1-0"]
[Round "5"]
[TimeControl "180+1"]
[Date "2023.08.01"]
[WhiteClock "0:00:01"]
[BlackClock "0:00:08"]
[Board "63"]

1. e4 {[%clk 0:02:59]}  e5 {[%clk 0:02:58]} 2. d4 {[%clk 0:02:59]}  exd4 {[%clk 0:02:57]} 3. Qxd4 {[%clk 0:03:00]}  Nc6 {[%clk 0:02:56]} 4. Qe3 {[%clk 0:03:00]}  Nf6 {[%clk 0:02:57]} 5. Nc3 {[%clk 0:03:00]}  Bb4 {[%clk 0:02:57]} 6. Bd2 {[%clk 0:03:01]}  O-O {[%clk 0:02:58]} 7. O-O-O {[%clk 0:03:01]}  Re8 {[%clk 0:02:58]} 8. Qf4 {[%clk 0:03:01]}  Bxc3 {[%clk 0:02:39]} 9. Bxc3 {[%clk 0:03:01]}  Rxe4 {[%clk 0:02:39]} 10. Qg3 {[%clk 0:02:36]}  d5 {[%clk 0:02:29]} 11. Bd3 {[%clk 0:02:35]}  Re6 {[%clk 0:02:25]} 12. h4 {[%clk 0:02:29]}  Rd6 {[%clk 0:02:18]} 13. h5 {[%clk 0:02:17]}  d4 {[%clk 0:02:17]} 14. h6 {[%clk 0:02:06]}  g6 {[%clk 0:02:10]} 15. Bd2 {[%clk 0:02:05]}  Nd5 {[%clk 0:01:49]} 16. a3 {[%clk 0:01:57]}  Nce7 {[%clk 0:01:35]} 17. Nf3 {[%clk 0:01:50]}  c5 {[%clk 0:01:18]} 18. Nh4 {[%clk 0:01:38]}  Nc6 {[%clk 0:00:57]} 19. f4 {[%clk 0:01:29]}  Nb6 {[%clk 0:00:42]} 20. f5 {[%clk 0:01:25]}  c4 {[%clk 0:00:42]} 21. fxg6 {[%clk 0:01:22]}  fxg6 {[%clk 0:00:38]} 22. Bxg6 {[%clk 0:00:47]}  hxg6 {[%clk 0:00:37]} 23. h7+ {[%clk 0:00:47]}  Kg7 {[%clk 0:00:28]} 24. h8=Q+ {[%clk 0:00:32]}  Qxh8 {[%clk 0:00:21]} 25. Qxd6 {[%clk 0:00:31]}  Qe8 {[%clk 0:00:20]} 26. Nf3 {[%clk 0:00:19]}  Qe6 {[%clk 0:00:17]} 27. Bh6+ {[%clk 0:00:19]}  Kg8 {[%clk 0:00:16]} 28. Qg3 {[%clk 0:00:18]}  Qg4 {[%clk 0:00:15]} 29. Qc7 {[%clk 0:00:14]}  Qd7 {[%clk 0:00:14]} 30. Qf4 {[%clk 0:00:14]}  Qf5 {[%clk 0:00:14]} 31. Qxf5 {[%clk 0:00:12]}  Bxf5 {[%clk 0:00:14]} 32. Nxd4 {[%clk 0:00:13]}  Nxd4 {[%clk 0:00:15]} 33. Rxd4 {[%clk 0:00:14]}  Re8 {[%clk 0:00:15]} 34. Rhd1 {[%clk 0:00:13]}  Re2 {[%clk 0:00:15]} 35. Rd8+ {[%clk 0:00:13]}  Kf7 {[%clk 0:00:15]} 36. Rf8+ {[%clk 0:00:12]}  Ke7 {[%clk 0:00:14]} 37. Rd2 {[%clk 0:00:09]}  Re1+ {[%clk 0:00:15]} 38. Rd1 {[%clk 0:00:10]}  Re2 {[%clk 0:00:16]} 39. Rd2 {[%clk 0:00:07]}  Re1+ {[%clk 0:00:15]} 40. Rd1 {[%clk 0:00:08]}  Re6 {[%clk 0:00:10]} 41. Rfd8 {[%clk 0:00:07]}  Be4 {[%clk 0:00:10]} 42. Bg5+ {[%clk 0:00:07]}  Kf7 {[%clk 0:00:10]} 43. Rf1+ {[%clk 0:00:07]}  Kg7 {[%clk 0:00:10]} 44. Rdf8 {[%clk 0:00:07]}  Bf5 {[%clk 0:00:10]} 45. Rb8 {[%clk 0:00:07]}  Re2 {[%clk 0:00:09]} 46. Rxb7+ {[%clk 0:00:07]}  Kg8 {[%clk 0:00:10]} 47. Kd1 {[%clk 0:00:04]}  Rxg2 {[%clk 0:00:09]} 48. Rxa7 {[%clk 0:00:04]}  Rxg5 {[%clk 0:00:09]} 49. a4 {[%clk 0:00:02]}  Nd5 {[%clk 0:00:09]} 50. Re1 {[%clk 0:00:01]}  Rg2 {[%clk 0:00:08]} 51. Re8# {[%clk 0:00:01]} 1-0


[Site "https://www.chess.com"]

[Event "Titled Tuesday Blitz August 1 Early 2023"]
[White "Sadykov, Ramil"]
[Black "Sosa, Tomas"]
[WhiteFideId "24113590"]
[BlackFideId "121576"]
[WhiteElo "2575"]
[BlackElo "2822"]
[Result "0-1"]
[Round "5"]
[TimeControl "180+1"]
[Date "2023.08.01"]
[WhiteClock "0:00:04"]
[BlackClock "0:00:13"]
[Board "66"]

1. e4 {[%clk 0:03:00]}  c6 {[%clk 0:02:59]} 2. d4 {[%clk 0:02:54]}  d5 {[%clk 0:02:59]} 3. e5 {[%clk 0:02:55]}  Bf5 {[%clk 0:02:59]} 4. Nc3 {[%clk 0:02:55]}  e6 {[%clk 0:02:58]} 5. g4 {[%clk 0:02:56]}  Bg6 {[%clk 0:02:59]} 6. Nge2 {[%clk 0:02:56]}  h5 {[%clk 0:02:57]} 7. Nf4 {[%clk 0:02:56]}  Ne7 {[%clk 0:02:57]} 8. Nxg6 {[%clk 0:02:54]}  Nxg6 {[%clk 0:02:58]} 9. gxh5 {[%clk 0:02:52]}  Nh4 {[%clk 0:02:57]} 10. Bd3 {[%clk 0:02:49]}  c5 {[%clk 0:02:58]} 11. dxc5 {[%clk 0:02:39]}  Nc6 {[%clk 0:02:56]} 12. Qg4 {[%clk 0:02:17]}  Be7 {[%clk 0:02:19]} 13. Bf4 {[%clk 0:01:52]}  d4 {[%clk 0:02:10]} 14. Ne4 {[%clk 0:01:44]}  Qd5 {[%clk 0:02:10]} 15. Ke2 {[%clk 0:01:18]}  Nf5 {[%clk 0:01:38]} 16. Nd6+ {[%clk 0:00:47]}  Bxd6 {[%clk 0:01:37]} 17. exd6 {[%clk 0:00:43]}  O-O-O {[%clk 0:01:25]} 18. b4 {[%clk 0:00:26]}  Nxb4 {[%clk 0:01:22]} 19. Rab1 {[%clk 0:00:22]}  Qxc5 {[%clk 0:01:20]} 20. Rhc1 {[%clk 0:00:14]}  Nxd6 {[%clk 0:01:15]} 21. Bd2 {[%clk 0:00:12]}  Nc6 {[%clk 0:01:14]} 22. c3 {[%clk 0:00:07]}  Qxh5 {[%clk 0:01:10]} 23. Qxh5 {[%clk 0:00:05]}  Rxh5 {[%clk 0:01:11]} 24. cxd4 {[%clk 0:00:05]}  Kd7 {[%clk 0:01:04]} 25. Be3 {[%clk 0:00:02]}  Rxh2 {[%clk 0:01:00]} 26. Rg1 {[%clk 0:00:02]}  g6 {[%clk 0:01:00]} 27. Rbc1 {[%clk 0:00:02]}  Rdh8 {[%clk 0:00:51]} 28. Rg5 {[%clk 0:00:03]}  R8h5 {[%clk 0:00:51]} 29. Rcg1 {[%clk 0:00:03]}  Rxg5 {[%clk 0:00:51]} 30. Rxg5 {[%clk 0:00:03]}  Rh4 {[%clk 0:00:49]} 31. d5 {[%clk 0:00:03]}  Nd4+ {[%clk 0:00:45]} 32. Kf1 {[%clk 0:00:03]}  N6f5 {[%clk 0:00:36]} 33. dxe6+ {[%clk 0:00:03]}  Kxe6 {[%clk 0:00:37]} 34. Bxd4 {[%clk 0:00:02]}  Nxd4 {[%clk 0:00:36]} 35. Kg2 {[%clk 0:00:02]}  Nc6 {[%clk 0:00:34]} 36. Rb5 {[%clk 0:00:02]}  Rb4 {[%clk 0:00:32]} 37. Rc5 {[%clk 0:00:02]}  Rb2 {[%clk 0:00:30]} 38. a3 {[%clk 0:00:02]}  Ne5 {[%clk 0:00:29]} 39. Be4 {[%clk 0:00:02]}  b6 {[%clk 0:00:29]} 40. Rc7 {[%clk 0:00:02]}  f5 {[%clk 0:00:27]} 41. Ba8 {[%clk 0:00:02]}  a5 {[%clk 0:00:21]} 42. Kg3 {[%clk 0:00:01]}  Rb3+ {[%clk 0:00:21]} 43. Kh4 {[%clk 0:00:02]}  Kf6 {[%clk 0:00:20]} 44. f4 {[%clk 0:00:01]}  Nf7 {[%clk 0:00:17]} 45. Rc6+ {[%clk 0:00:02]}  Kg7 {[%clk 0:00:18]} 46. Rc7 {[%clk 0:00:01]}  Rd3 {[%clk 0:00:18]} 47. Bc6 {[%clk 0:00:02]}  Kf8 {[%clk 0:00:15]} 48. Bb5 {[%clk 0:00:02]}  Rxa3 {[%clk 0:00:12]} 49. Bc4 {[%clk 0:00:02]}  g5+ {[%clk 0:00:11]} 50. fxg5 {[%clk 0:00:02]}  Ne5 {[%clk 0:00:12]} 51. Bd5 {[%clk 0:00:01]}  Ng6+ {[%clk 0:00:11]} 52. Kh5 {[%clk 0:00:02]}  Nf4+ {[%clk 0:00:12]} 53. Kh6 {[%clk 0:00:02]}  Nxd5 {[%clk 0:00:13]} 54. g6 {[%clk 0:00:02]}  Rh3+ {[%clk 0:00:10]} 55. Kg5 {[%clk 0:00:03]}  Rg3+ {[%clk 0:00:11]} 56. Kh6 {[%clk 0:00:03]}  Ne7 {[%clk 0:00:10]} 57. Rd7 {[%clk 0:00:02]}  Rxg6+ {[%clk 0:00:11]} 58. Kh5 {[%clk 0:00:02]}  Re6 {[%clk 0:00:11]} 59. Rd8+ {[%clk 0:00:02]}  Kf7 {[%clk 0:00:12]} 60. Rd7 {[%clk 0:00:01]}  a4 {[%clk 0:00:12]} 61. Ra7 {[%clk 0:00:02]}  b5 {[%clk 0:00:13]} 62. Rb7 {[%clk 0:00:02]}  Re5 {[%clk 0:00:13]} 63. Kg5 {[%clk 0:00:03]}  a3 {[%clk 0:00:13]} 64. Kf4 {[%clk 0:00:04]}  Re4+ {[%clk 0:00:14]} 65. Kg5 {[%clk 0:00:04]}  a2 {[%clk 0:00:14]} 66. Ra7 {[%clk 0:00:05]}  Ra4 {[%clk 0:00:14]} 67. Rc7 {[%clk 0:00:04]}  a1=Q {[%clk 0:00:14]} 68. Rc2 {[%clk 0:00:05]}  Qf6+ {[%clk 0:00:12]} 69. Kh5 {[%clk 0:00:04]}  Rh4# {[%clk 0:00:13]} 0-1


[Site "https://www.chess.com"]

[Event "Titled Tuesday Blitz August 1 Early 2023"]
[White "Dinosaurio_1975"]
[Black "Bauman_Guy"]
[WhiteElo "2557"]
[BlackElo "2779"]
[Result "0-1"]
[Round "5"]
[TimeControl "180+1"]
[Date "2023.08.01"]
[WhiteClock "0:00:17"]
[BlackClock "0:01:10"]
[Board "69"]

1. e4 {[%clk 0:03:00]}  c5 {[%clk 0:02:33]} 2. Nf3 {[%clk 0:02:59]}  d6 {[%clk 0:02:32]} 3. Bb5+ {[%clk 0:03:00]}  Nd7 {[%clk 0:02:32]} 4. c3 {[%clk 0:03:00]}  a6 {[%clk 0:02:32]} 5. Ba4 {[%clk 0:03:00]}  g6 {[%clk 0:02:32]} 6. O-O {[%clk 0:02:58]}  Bg7 {[%clk 0:02:33]} 7. d4 {[%clk 0:02:59]}  b5 {[%clk 0:02:32]} 8. Bc2 {[%clk 0:02:59]}  e5 {[%clk 0:02:32]} 9. d5 {[%clk 0:02:52]}  Ngf6 {[%clk 0:02:26]} 10. Re1 {[%clk 0:02:39]}  O-O {[%clk 0:02:26]} 11. h3 {[%clk 0:02:38]}  Bb7 {[%clk 0:02:25]} 12. Be3 {[%clk 0:02:37]}  Nh5 {[%clk 0:02:25]} 13. Nfd2 {[%clk 0:02:37]}  Nf4 {[%clk 0:02:23]} 14. c4 {[%clk 0:02:35]}  f5 {[%clk 0:02:19]} 15. exf5 {[%clk 0:02:28]}  gxf5 {[%clk 0:02:18]} 16. Bxf4 {[%clk 0:02:29]}  exf4 {[%clk 0:02:19]} 17. Nc3 {[%clk 0:02:20]}  b4 {[%clk 0:02:18]} 18. Ne2 {[%clk 0:02:20]}  Bxb2 {[%clk 0:02:12]} 19. Nxf4 {[%clk 0:02:12]}  Bxa1 {[%clk 0:02:12]} 20. Qxa1 {[%clk 0:01:46]}  Qf6 {[%clk 0:02:11]} 21. Qd1 {[%clk 0:01:45]}  Rfe8 {[%clk 0:02:05]} 22. Re6 {[%clk 0:01:20]}  Rxe6 {[%clk 0:01:54]} 23. dxe6 {[%clk 0:01:20]}  Nf8 {[%clk 0:01:48]} 24. Qh5 {[%clk 0:01:06]}  Nxe6 {[%clk 0:01:37]} 25. Bxf5 {[%clk 0:00:54]}  Nxf4 {[%clk 0:01:27]} 26. Qxh7+ {[%clk 0:00:54]}  Kf8 {[%clk 0:01:27]} 27. Qxb7 {[%clk 0:00:54]}  Re8 {[%clk 0:01:27]} 28. Qh7 {[%clk 0:00:34]}  Re7 {[%clk 0:01:10]} 29. Ne4 {[%clk 0:00:19]}  Qa1+ {[%clk 0:01:10]} 30. Kh2 {[%clk 0:00:17]}  Rxh7 {[%clk 0:01:10]} 0-1


[Site "https://www.chess.com"]

[Event "Titled Tuesday Blitz August 1 Early 2023"]
[White "Basso, Pier Luigi"]
[Black "Vlassov, Nikolai"]
[WhiteFideId "866970"]
[BlackFideId "4103360"]
[WhiteElo "2778"]
[BlackElo "2544"]
[Result "1-0"]
[Round "5"]
[TimeControl "180+1"]
[Date "2023.08.01"]
[WhiteClock "0:01:25"]
[BlackClock "0:00:35"]
[Board "70"]

1. e4 {[%clk 0:03:00]}  Nc6 {[%clk 0:02:59]} 2. Nc3 {[%clk 0:02:59]}  Nf6 {[%clk 0:02:59]} 3. d4 {[%clk 0:02:57]}  d5 {[%clk 0:02:59]} 4. e5 {[%clk 0:02:56]}  Nd7 {[%clk 0:02:59]} 5. f4 {[%clk 0:02:52]}  Nb6 {[%clk 0:02:59]} 6. Nf3 {[%clk 0:02:52]}  Bg4 {[%clk 0:02:58]} 7. Be2 {[%clk 0:02:49]}  Qd7 {[%clk 0:02:57]} 8. O-O {[%clk 0:02:49]}  e6 {[%clk 0:02:53]} 9. a4 {[%clk 0:02:43]}  a6 {[%clk 0:02:47]} 10. b3 {[%clk 0:02:40]}  Ne7 {[%clk 0:02:45]} 11. a5 {[%clk 0:02:37]}  Nbc8 {[%clk 0:02:45]} 12. Be3 {[%clk 0:02:35]}  Nf5 {[%clk 0:02:44]} 13. Bf2 {[%clk 0:02:36]}  h5 {[%clk 0:02:44]} 14. Ne1 {[%clk 0:02:28]}  Bxe2 {[%clk 0:02:41]} 15. Nxe2 {[%clk 0:02:29]}  Be7 {[%clk 0:02:23]} 16. Nd3 {[%clk 0:02:29]}  Na7 {[%clk 0:02:20]} 17. Qd2 {[%clk 0:02:20]}  g6 {[%clk 0:02:13]} 18. Ng3 {[%clk 0:02:15]}  Bh4 {[%clk 0:01:39]} 19. Nc5 {[%clk 0:02:12]}  Qc6 {[%clk 0:01:35]} 20. Nxf5 {[%clk 0:01:59]}  Bxf2+ {[%clk 0:01:34]} 21. Qxf2 {[%clk 0:02:00]}  gxf5 {[%clk 0:01:34]} 22. c4 {[%clk 0:01:55]}  Nc8 {[%clk 0:01:31]} 23. Rfc1 {[%clk 0:01:52]}  Ne7 {[%clk 0:01:30]} 24. Qh4 {[%clk 0:01:48]}  b6 {[%clk 0:01:23]} 25. axb6 {[%clk 0:01:47]}  cxb6 {[%clk 0:01:23]} 26. Nxa6 {[%clk 0:01:46]}  Kf8 {[%clk 0:01:10]} 27. Qf6 {[%clk 0:01:42]}  Rh7 {[%clk 0:01:06]} 28. Nb4 {[%clk 0:01:33]}  Qb7 {[%clk 0:01:06]} 29. Rxa8+ {[%clk 0:01:31]}  Qxa8 {[%clk 0:01:06]} 30. cxd5 {[%clk 0:01:32]}  Qa3 {[%clk 0:00:58]} 31. Nd3 {[%clk 0:01:26]}  Qxb3 {[%clk 0:00:35]} 32. d6 {[%clk 0:01:25]} 1-0


[Site "https://www.chess.com"]